{"text_format":"3","workbook":"xlsx","n_sheets":2,"sheets":["Penjejak Jawapan","Ringkasan Jawapan"],"not_rendered":{"charts":2,"images":2,"defined_names":8},"read":"whole","date_system":"1900"}

{"sheet":"Penjejak Jawapan","index":0,"n_rows":21,"n_cols":16,"rows_kept":21}
[]
[]
[]
[]
[{"$nulls":4},"penjejak jemputan perkahwinan"]
[]
[{"$f":"TODAY()+283","v":"2013-10-25"},{"$nulls":3},"NAMA TETAMU","TELAH HANTAR?","Jawapan","MAJLIS","TETAMU","PERHUBUNGAN","ALAMAT","BANDAR","NEGERI","POSKOD","TELEFON","E-mel Hubungan"]
[{"$nulls":4},"Benjamin Gay","Ya","Ya",1,"Pengantin","Abang","123 Shady Lane","Cherryville","WA",12345,5415550100,"someone@example.com"]
[{"$nulls":4},"Ofer Daliot","Ya","Tidak",3,"Pengantin","Kawan","456 First Street","Auburn","HI",23456,5415550101,"someone@example.com"]
[{"$f":"WeddingDate-TODAY()","v":283},{"$nulls":3},"Raman Iyer","Ya","Ya",1,"Lain","Kawan","6789 17th Street","Ocean View","MO",34567,5415550102,"someone@example.com"]
[{"$nulls":4},"Michael Khoury","Ya","Tidak",2,"Pengantin Lelaki","Kawan","1234 West Avenue","Ocean View","MO",45678,5415550103,"someone@example.com"]
[{"$nulls":4},"Olinda Turner","Ya","Ya",2,"Pengantin Lelaki","Kawan","890 Smith Street","Southernview","ID",56789,5415550104,"someone@example.com"]
[{"$nulls":4},"Jerry Orman","Ya",null,null,"Lain","Kawan","345 20th Avenue","Forest","OR",67890,5415550105,"someone@example.com"]
[{"$f":"COUNTIF(tblInvites[Jawapan],\"Ya\")","v":6},{"$nulls":3},"Eva Elznicova","Ya","Ya",2,"Pengantin Lelaki","Kawan","678 1st Street","Overland","WA",78901,5415550106,"someone@example.com"]
[{"$nulls":4},"Kweku Ako-Adjei","Ya","Tidak",1,"Lain","Kawan","1234 Pine Street","Portland","WA",89012,5415550107,"someone@example.com"]
[{"$nulls":4},"Maggie Carrido","Ya","Ya",4,"Pengantin","Kawan","34 North Lane","Forrest","OR",54321,5415550108,"someone@example.com"]
[{"$f":"tblInvites[[#Totals],[Jawapan]]-TotalAttending","v":3},{"$nulls":3},"Ken Mallit","Ya","Ya",2,"Pengantin","Kawan","456 Center Court","Greenville","CO",65432,5415550109,"someone@example.com"]
[{"$nulls":4},"Derek Brown","Ya",null,null,"Pengantin Lelaki","Abang","2345 Hill Street","Cherryville","WA",76543,5415550110,"someone@example.com"]
[{"$nulls":4},"JUMLAH:",{"$f":"SUBTOTAL(103,tblInvites[TELAH HANTAR?])","v":11},{"$f":"SUBTOTAL(103,tblInvites[Jawapan])","v":9},{"$f":"SUBTOTAL(109,tblInvites[MAJLIS])","v":18}]
[]
[{"$f":"tblInvites[[#Totals],[TELAH HANTAR?]]-A17-TotalAttending","v":2}]

{"sheet":"Ringkasan Jawapan","index":1,"n_rows":19,"n_cols":16,"rows_kept":19,"merged":[[7,4,9,4],[12,4,14,5]]}
[]
[]
[]
[]
[{"$nulls":4},"ringkasan jawapan",{"$nulls":10},"nota"]
[]
[{"$f":"WeddingDate","v":"2013-10-25"}]
[{"$nulls":4},"YA",null,"Lain",{"$f":"SUMPRODUCT((tblInvites[TETAMU]=G8)*(tblInvites[Jawapan]=$E$8))","v":1},{"$f":"tblInvites[[#Totals],[TELAH HANTAR?]]","v":11}]
[{"$nulls":6},"Pengantin Lelaki",{"$f":"SUMPRODUCT((tblInvites[TETAMU]=G9)*(tblInvites[Jawapan]=$E$8))","v":2},{"$f":"tblInvites[[#Totals],[TELAH HANTAR?]]","v":11}]
[{"$nulls":6},"Pengantin",{"$f":"SUMPRODUCT((tblInvites[TETAMU]=G10)*(tblInvites[Jawapan]=$E$8))","v":3},{"$f":"tblInvites[[#Totals],[TELAH HANTAR?]]","v":11}]
[]
[]
[{"$nulls":4},"TIDAK",null,"Lain",{"$f":"SUMPRODUCT((tblInvites[TETAMU]=G13)*(tblInvites[Jawapan]=$E$13))","v":1},{"$f":"tblInvites[[#Totals],[TELAH HANTAR?]]","v":11}]
[{"$nulls":6},"Pengantin Lelaki",{"$f":"SUMPRODUCT((tblInvites[TETAMU]=G14)*(tblInvites[Jawapan]=$E$13))","v":1},{"$f":"tblInvites[[#Totals],[TELAH HANTAR?]]","v":11}]
[{"$nulls":6},"Pengantin",{"$f":"SUMPRODUCT((tblInvites[TETAMU]=G15)*(tblInvites[Jawapan]=$E$13))","v":1},{"$f":"tblInvites[[#Totals],[TELAH HANTAR?]]","v":11}]
[]
[{"$f":"COUNTIF(tblInvites[Jawapan],\"Yes\")","v":0}]
[{"$f":"tblInvites[[#Totals],[Jawapan]]-TotalAttending","v":3}]
[{"$f":"tblInvites[[#Totals],[TELAH HANTAR?]]-A18-TotalAttending","v":2}]